fUSD/lending_fUSD_20260513
["ID","MTS","AMOUNT","RATE_DAILY","PERIOD"]
[422167837,1778643046000,-150.0,0.00038065,7]
[422167849,1778643046000,-40394.0,0.00038153,60]
[422167839,1778643046000,-225.7267,0.00038077,2]
[422167838,1778643046000,-2090.2533,0.00038077,2]
[422167840,1778643046000,-150.0,0.00038088,30]
[422167916,1778643047000,-500.0,0.00038356,2]
[422167900,1778643047000,-500.0,0.00038356,2]
[422167904,1778643047000,-500.0,0.00038356,2]
[422167902,1778643047000,-500.0,0.00038356,2]
[422167918,1778643047000,-500.0,0.00038356,2]
[422167906,1778643047000,-500.0,0.00038356,2]
[422167908,1778643047000,-500.0,0.00038356,2]
[422167910,1778643047000,-500.0,0.00038356,2]
[422167921,1778643047000,-500.0,0.00038356,2]
[422167914,1778643047000,-387.57612507,0.00038356,2]
[422167935,1778643047000,-458.37215967,0.00038356,2]
[422167937,1778643047000,-1000.0,0.00038356,7]
[422167926,1778643047000,-500.0,0.00038356,2]
[422167929,1778643047000,-500.0,0.00038356,2]
[422167927,1778643047000,-500.0,0.00038356,2]
[422167941,1778643047000,-150.0,0.00038392,7]
[422167942,1778643047000,-150.0,0.00038409,7]
[422167938,1778643047000,-1000.0,0.00038356,7]
[422167924,1778643047000,-500.0,0.00038356,2]
[422167912,1778643047000,-500.0,0.00038356,2]
[422167882,1778643047000,-415.69729798,0.00038356,2]
[422167896,1778643047000,-500.0,0.00038356,2]
[422167940,1778643047000,-197.0,0.00038356,2]
[422167886,1778643047000,-500.0,0.00038356,2]
[422167887,1778643047000,-407.19620485,0.00038356,2]
[422167879,1778643047000,-500.0,0.00038356,2]
[422167880,1778643047000,-500.0,0.00038356,2]
[422167883,1778643047000,-500.0,0.00038356,2]
[422167881,1778643047000,-500.0,0.00038356,2]
[422167885,1778643047000,-500.0,0.00038356,2]
[422167884,1778643047000,-500.0,0.00038356,2]
[422167899,1778643047000,-500.0,0.00038356,2]
[422167889,1778643047000,-500.0,0.00038356,2]
[422167888,1778643047000,-500.0,0.00038356,2]
[422167891,1778643047000,-500.0,0.00038356,2]
[422167893,1778643047000,-500.0,0.00038356,2]
[422167895,1778643047000,-500.0,0.00038356,2]
[422167890,1778643047000,-500.0,0.00038356,2]
[422167892,1778643047000,-500.0,0.00038356,2]
[422167897,1778643047000,-500.0,0.00038356,2]
[422167894,1778643047000,-500.0,0.00038356,2]
[422167898,1778643047000,-500.0,0.00038356,2]
[422167931,1778643047000,-500.0,0.00038356,2]
[422167953,1778643047000,-929.64,0.00038469,2]
[422167933,1778643047000,-500.0,0.00038356,2]
[422167960,1778643047000,-150.0,0.00038536,30]
[422167962,1778643047000,-184.09,0.00038559,30]
[422167971,1778643047000,-150.0,0.00038711,7]
[422167969,1778643047000,-150.0,0.00038638,7]
[422167980,1778643047000,-500.0,0.00038758,120]
[422167982,1778643047000,-40394.0,0.00038759,120]
[422167981,1778643047000,-40393.0,0.00038759,120]
[422167983,1778643047000,-4534.76352596,0.00038759,120]
[422167970,1778643047000,-310.13,0.00038702,120]
[422167977,1778643047000,-500.0,0.00038758,2]
[422167976,1778643047000,-500.0,0.00038758,120]
[422167973,1778643047000,-288.74271153,0.00038718,120]
[422167972,1778643047000,-150.0,0.00038716,7]
[422167978,1778643047000,-500.0,0.00038758,120]
[422167975,1778643047000,-500.0,0.00038758,30]
[422167974,1778643047000,-150.0,0.00038747,7]
[422167979,1778643047000,-872.15,0.00038758,7]
[422167985,1778643047000,-3600.63766887,0.00038759,120]
[422167939,1778643047000,-932.48183126,0.00038356,7]
[422167958,1778643047000,-310.13,0.00038502,120]
[422167959,1778643047000,-150.0,0.00038535,7]
[422167984,1778643047000,-1056.03864448,0.00038759,120]
[422167963,1778643047000,-150.0,0.00038565,7]
[422167964,1778643047000,-151.90931238,0.00038579,100]
[422167946,1778643047000,-500.0,0.00038416,2]
[422167943,1778643047000,-151.0,0.0003841,14]
[422167945,1778643047000,-40397.0,0.00038413,120]
[422167952,1778643047000,-929.64,0.00038469,2]
[422167954,1778643047000,-929.67,0.00038471,2]
[422167951,1778643047000,-929.64,0.00038469,2]
[422167949,1778643047000,-929.64,0.00038467,2]
[422167948,1778643047000,-150.0,0.0003842,7]
[422167944,1778643047000,-40396.0,0.00038413,120]
[422167950,1778643047000,-929.64,0.00038467,2]
[422167956,1778643047000,-929.64,0.00038471,2]
[422167966,1778643047000,-150.0,0.00038614,7]
[422167968,1778643047000,-150.0,0.00038614,7]
[422167967,1778643047000,-150.0,0.00038614,7]
[422167957,1778643047000,-150.0,0.00038493,7]
[422167965,1778643047000,-310.13,0.00038602,120]
[422167955,1778643047000,-929.64,0.00038471,2]
[422167961,1778643047000,-2090.2533,0.00038542,2]
[422167947,1778643047000,-16779.8314,0.00038417,30]
[422168010,1778643048000,-305.0,0.00039,30]
[422168008,1778643048000,-150.0,0.00038984,30]
[422168017,1778643048000,-150.0,0.00039005,7]
[422168009,1778643048000,-10000.0,0.00039,40]
[422168014,1778643048000,-8610.81890887,0.00039,30]
[422168013,1778643048000,-8610.81890887,0.00039,30]
[422168012,1778643048000,-8610.81890889,0.00039,30]
[422168011,1778643048000,-2283.94,0.00039,14]
[422168025,1778643048000,-40397.0,0.00039105,120]
[422168015,1778643048000,-150.0,0.00039001,7]
[422168019,1778643048000,-150.0,0.00039023,7]
[422168030,1778643048000,-151.4242103,0.00039197,120]
[422168018,1778643048000,-2090.254,0.00039006,2]
[422168020,1778643048000,-150.0,0.00039058,7]
[422168029,1778643048000,-1000.0,0.00039183,2]
[422168022,1778643048000,-310.13,0.00039102,120]
[422168016,1778643048000,-310.13,0.00039002,120]
[422168007,1778643048000,-150.0,0.00038928,7]
[422168005,1778643048000,-2000.0,0.000389,7]
[422167994,1778643048000,-40394.0,0.00038759,120]
[422168006,1778643048000,-310.13,0.00038902,120]
[422168021,1778643048000,-150.0,0.00039074,7]
[422167987,1778643048000,-299.83564934,0.00037132,2]
[422167990,1778643048000,-933.65076361,0.00038759,120]
[422167988,1778643048000,-2505.82659351,0.00038759,120]
[422167989,1778643048000,-2240.68699354,0.00038759,120]
[422167986,1778643048000,-0.16435066,0.00037132,2]
[422167991,1778643048000,-648.63625252,0.00038759,120]
[422167992,1778643048000,-24873.75955751,0.00038759,120]
[422168004,1778643048000,-2555.36511267,0.00038898,2]
[422167993,1778643048000,-40395.0,0.00038759,120]
[422168003,1778643048000,-150.0,0.00038856,7]
[422167996,1778643048000,-150.0,0.0003877,7]
[422168001,1778643048000,-310.13,0.00038802,120]
[422168002,1778643048000,-150.0,0.00038836,7]
[422167997,1778643048000,-2090.2533,0.00038774,2]
[422167998,1778643048000,-507.0,0.00038777,17]
[422168000,1778643048000,-150.0,0.00038783,7]
[422167999,1778643048000,-1439.0,0.00038778,5]
[422167995,1778643048000,-150.0,0.0003876,30]
[422168023,1778643048000,-500.0,0.00039104,2]
[422168052,1778643048000,-150.0,0.00039279,7]
[422168026,1778643048000,-712.77632107,0.00039122,2]
[422168051,1778643048000,-150.0,0.00039279,7]
[422168047,1778643048000,-5000.0,0.00039238,2]
[422168050,1778643048000,-150.0,0.00039279,7]
[422168053,1778643048000,-150.0,0.00039292,7]
[422168055,1778643048000,-569.27740086,0.00039311,2]
[422168056,1778643048000,-150.0,0.00039331,7]
[422168058,1778643048000,-1725.24,0.00039352,120]
[422168059,1778643048000,-150.0,0.00039364,7]
[422168057,1778643048000,-509.49,0.00039344,2]
[422168062,1778643048000,-150.0,0.00039433,30]
[422168060,1778643048000,-40394.0,0.00039365,120]
[422168063,1778643048000,-150.0,0.00039437,7]
[422168065,1778643048000,-150.0,0.00039501,7]
[422168064,1778643048000,-150.0,0.00039475,7]
[422168066,1778643048000,-310.13,0.00039502,120]
[422168068,1778643048000,-150.0,0.00039546,7]
[422168028,1778643048000,-150.0,0.00039146,7]
[422168045,1778643048000,-150.0,0.00039219,7]
[422168049,1778643048000,-150.0,0.0003924,7]
[422168061,1778643048000,-310.13,0.00039402,120]
[422168048,1778643048000,-5000.0,0.00039238,2]
[422168067,1778643048000,-150.0,0.00039509,7]
[422168024,1778643048000,-40396.0,0.00039105,120]
[422168027,1778643048000,-150.0,0.00039146,7]
[422168031,1778643048000,-412.9687174,0.00039197,120]
[422168034,1778643048000,-159.0818048,0.00039197,120]
[422168032,1778643048000,-171.3357043,0.00039197,120]
[422168042,1778643048000,-872.15,0.00039218,7]
[422168043,1778643048000,-500.0,0.00039218,120]
[422168044,1778643048000,-52960.2252,0.00039219,2]
[422168033,1778643048000,-164.0556012,0.00039197,120]
[422168041,1778643048000,-500.0,0.00039218,120]
[422168040,1778643048000,-500.0,0.00039218,2]
[422168036,1778643048000,-500.0,0.00039205,2]
[422168035,1778643048000,-310.13,0.00039202,120]
[422168038,1778643048000,-500.0,0.00039218,30]
[422168039,1778643048000,-616.49012855,0.00039218,120]
[422168046,1778643048000,-39401.69669405,0.00039219,2]
[422168037,1778643048000,-150.0,0.00039209,30]
[422168054,1778643048000,-310.13,0.00039302,120]
[422168107,1778643049000,-158.46813159,0.00039673,2]
[422168111,1778643049000,-187.65972801,0.00039679,2]
[422168109,1778643049000,-166.01195424,0.00039673,2]
[422168112,1778643049000,-160.38092409,0.00039679,2]
[422168105,1778643049000,-202.21397653,0.00039673,2]
[422168097,1778643049000,-150.0,0.00039582,7]
[422168104,1778643049000,-150.0,0.00039669,2]
[422168100,1778643049000,-11377.62,0.00039603,30]
[422168101,1778643049000,-150.0,0.00039638,7]
[422168110,1778643049000,-167.53000894,0.00039673,2]
[422168098,1778643049000,-1561.696031,0.000396,35]
[422168115,1778643049000,-188.2348292,0.00039698,2]
[422168106,1778643049000,-209.09678867,0.00039673,2]
[422168121,1778643049000,-150.0,0.0003971,7]
[422168108,1778643049000,-155.77672896,0.00039673,2]
[422168113,1778643049000,-1725.31,0.00039679,120]
[422168117,1778643049000,-169.0260919,0.00039698,2]
[422168119,1778643049000,-981.3682,0.00039702,30]
[422168118,1778643049000,-2283.94,0.000397,14]
[422168116,1778643049000,-153.06925292,0.00039698,2]
[422168127,1778643049000,-500.0,0.00039726,15]
[422168120,1778643049000,-310.13,0.00039702,120]
[422168125,1778643049000,-500.0,0.00039726,15]
[422168123,1778643049000,-500.0,0.00039726,15]
[422168124,1778643049000,-500.0,0.00039726,15]
[422168102,1778643049000,-150.0,0.00039655,7]
[422168114,1778643049000,-170.78881258,0.00039698,2]
[422168099,1778643049000,-310.13,0.00039602,120]
[422168075,1778643049000,-500.0,0.00039566,2]
[422168095,1778643049000,-248.81588093,0.00039566,2]
[422168078,1778643049000,-500.0,0.00039566,2]
[422168069,1778643049000,-1000.0,0.00039547,90]
[422168070,1778643049000,-500.0,0.00039566,2]
[422168071,1778643049000,-500.0,0.00039566,2]
[422168073,1778643049000,-500.0,0.00039566,2]
[422168072,1778643049000,-500.0,0.00039566,2]
[422168074,1778643049000,-500.0,0.00039566,2]
[422168077,1778643049000,-500.0,0.00039566,2]
[422168122,1778643049000,-150.0,0.00039723,7]
[422168076,1778643049000,-500.0,0.00039566,2]
[422168079,1778643049000,-500.0,0.00039566,2]
[422168088,1778643049000,-500.0,0.00039566,2]
[422168087,1778643049000,-500.0,0.00039566,2]
[422168091,1778643049000,-500.0,0.00039566,2]
[422168080,1778643049000,-500.0,0.00039566,2]
[422168090,1778643049000,-500.0,0.00039566,2]
[422168086,1778643049000,-500.0,0.00039566,2]
[422168085,1778643049000,-500.0,0.00039566,2]
[422168089,1778643049000,-500.0,0.00039566,2]
[422168084,1778643049000,-500.0,0.00039566,2]
[422168083,1778643049000,-500.0,0.00039566,2]
[422168082,1778643049000,-500.0,0.00039566,2]
[422168081,1778643049000,-500.0,0.00039566,2]
[422168092,1778643049000,-500.0,0.00039566,2]
[422168094,1778643049000,-500.0,0.00039566,2]
[422168103,1778643049000,-150.0,0.00039657,30]
[422168093,1778643049000,-500.0,0.00039566,2]
[422168096,1778643049000,-40395.0,0.00039567,120]
[422168128,1778643049000,-500.0,0.00039726,15]
[422168126,1778643049000,-500.0,0.00039726,15]
[422168129,1778643049000,-500.0,0.00039726,15]
[422168159,1778643049000,-1000.0,0.00039739,120]
[422168164,1778643049000,-40396.0,0.00039797,120]
[422168174,1778643049000,-163.66230478,0.00039842,2]
[422168175,1778643049000,-211.85999484,0.00039842,2]
[422168176,1778643049000,-216.54208767,0.00039842,2]
[422168166,1778643049000,-150.0,0.000398,7]
[422168163,1778643049000,-726.27589737,0.0003979,2]
[422168165,1778643049000,-40397.0,0.00039797,120]
[422168167,1778643049000,-889.84500097,0.000398,30]
[422168168,1778643049000,-310.13,0.00039802,120]
[422168169,1778643049000,-2001.9315,0.00039805,2]
[422168172,1778643049000,-278.09007929,0.00039842,2]
[422168171,1778643049000,-1000.0,0.00039838,90]
[422168170,1778643049000,-10008.0253,0.00039805,2]
[422168173,1778643049000,-190.41484531,0.00039842,2]
[422168178,1778643049000,-204.92751133,0.00039842,2]
[422168188,1778643049000,-169.41319494,0.00039842,2]
[422168177,1778643049000,-177.45942077,0.00039842,2]
[422168181,1778643049000,-229.34680691,0.00039842,2]
[422168185,1778643049000,-198.14001752,0.00039842,2]
[422168183,1778643049000,-172.52467005,0.00039842,2]
[422168131,1778643049000,-500.0,0.00039726,15]
[422168182,1778643049000,-163.99318148,0.00039842,2]
[422168179,1778643049000,-180.04668136,0.00039842,2]
[422168186,1778643049000,-160.26291576,0.00039842,2]
[422168187,1778643049000,-167.70053321,0.00039842,2]
[422168184,1778643049000,-151.96170357,0.00039842,2]
[422168158,1778643049000,-507.0,0.00039736,18]
[422168153,1778643049000,-500.0,0.00039726,15]
[422168180,1778643049000,-199.08909738,0.00039842,2]
[422168152,1778643049000,-500.0,0.00039726,15]
[422168155,1778643049000,-500.0,0.00039726,15]
[422168130,1778643049000,-500.0,0.00039726,15]
[422168133,1778643049000,-500.0,0.00039726,15]
[422168134,1778643049000,-500.0,0.00039726,15]
[422168136,1778643049000,-500.0,0.00039726,15]
[422168137,1778643049000,-500.0,0.00039726,15]
[422168135,1778643049000,-500.0,0.00039726,15]
[422168138,1778643049000,-500.0,0.00039726,15]
[422168139,1778643049000,-500.0,0.00039726,15]
[422168140,1778643049000,-500.0,0.00039726,15]
[422168141,1778643049000,-500.0,0.00039726,15]
[422168142,1778643049000,-500.0,0.00039726,15]
[422168149,1778643049000,-500.0,0.00039726,15]
[422168132,1778643049000,-500.0,0.00039726,15]
[422168146,1778643049000,-500.0,0.00039726,15]
[422168144,1778643049000,-500.0,0.00039726,15]
[422168154,1778643049000,-500.0,0.00039726,15]
[422168157,1778643049000,-150.0,0.00039727,7]
[422168161,1778643049000,-1000.0,0.00039783,90]
[422168162,1778643049000,-1000.0,0.00039789,90]
[422168160,1778643049000,-350.0,0.00039751,9]
[422168151,1778643049000,-455.63985178,0.00039726,15]
[422168143,1778643049000,-500.0,0.00039726,15]
[422168150,1778643049000,-500.0,0.00039726,15]
[422168145,1778643049000,-500.0,0.00039726,15]
[422168156,1778643049000,-500.0,0.00039726,15]
[422168147,1778643049000,-500.0,0.00039726,15]
[422168148,1778643049000,-500.0,0.00039726,15]
[422168230,1778643050000,-197.74710209,0.00039999,5]
[422168218,1778643050000,-40395.0,0.00039971,120]
[422168219,1778643050000,-40395.0,0.00039971,120]
[422168216,1778643050000,-872.15,0.0003997,7]
[422168221,1778643050000,-350.0,0.00039989,10]
[422168223,1778643050000,-2005.9555727,0.00039999,5]
[422168222,1778643050000,-1934.38338737,0.00039999,5]
[422168231,1778643050000,-12260.298781,0.0004,41]
[422168220,1778643050000,-40394.0,0.00039971,120]
[422168217,1778643050000,-500.0,0.0003997,120]
[422168215,1778643050000,-500.0,0.0003997,120]
[422168229,1778643050000,-2494.55939289,0.00039999,5]
[422168227,1778643050000,-2319.72410669,0.00039999,5]
[422168228,1778643050000,-2405.55389864,0.00039999,5]
[422168224,1778643050000,-2080.17592889,0.00039999,5]
[422168226,1778643050000,-2236.95670848,0.00039999,5]
[422168233,1778643050000,-396.77,0.0004,120]
[422168243,1778643050000,-156.0,0.0004,120]
[422168244,1778643050000,-502.0,0.0004,90]
[422168235,1778643050000,-218.43,0.0004,120]
[422168213,1778643050000,-500.0,0.0003997,30]
[422168232,1778643050000,-523.67,0.0004,120]
[422168225,1778643050000,-2157.14243826,0.00039999,5]
[422168214,1778643050000,-500.0,0.0003997,2]
[422168198,1778643050000,-1000.0,0.00039881,90]
[422168209,1778643050000,-178.92576556,0.00039945,7]
[422168234,1778643050000,-413.54,0.0004,120]
[422168193,1778643050000,-151.62376104,0.00039842,2]
[422168195,1778643050000,-1568.25291956,0.00039871,15]
[422168189,1778643050000,-186.57851817,0.00039842,2]
[422168190,1778643050000,-202.03597522,0.00039842,2]
[422168200,1778643050000,-228.9,0.0003989,60]
[422168191,1778643050000,-155.62599762,0.00039842,2]
[422168192,1778643050000,-152.1473509,0.00039842,2]
[422168194,1778643050000,-152.27703605,0.00039842,2]
[422168196,1778643050000,-150.0,0.00039873,7]
[422168208,1778643050000,-235.24788961,0.00039945,7]
[422168199,1778643050000,-768.58,0.0003989,60]
[422168202,1778643050000,-2009.0,0.000399,7]
[422168201,1778643050000,-159.66320043,0.0003989,2]
[422168212,1778643050000,-173.07391408,0.00039945,7]
[422168210,1778643050000,-264.67472406,0.00039945,7]
[422168206,1778643050000,-262.25245995,0.00039945,7]
[422168204,1778643050000,-350.0,0.00039907,8]
[422168211,1778643050000,-223.8056358,0.00039945,7]
[422168207,1778643050000,-152.4005079,0.00039945,7]
[422168203,1778643050000,-310.13,0.00039902,120]
[422168205,1778643050000,-269.391,0.00039913,120]
[422168197,1778643050000,-150.0,0.00039881,30]
[422168237,1778643050000,-331.19,0.0004,120]
[422168251,1778643050000,-718.712225,0.00040052,90]
[422168239,1778643050000,-152.0,0.0004,120]
[422168259,1778643050000,-4067.87657853,0.00040248,12]
[422168270,1778643050000,-500.0,0.00040283,7]
[422168271,1778643050000,-467.5034386,0.00040283,7]
[422168269,1778643050000,-500.0,0.00040283,7]
[422168277,1778643050000,-377.5034386,0.00040283,7]
[422168272,1778643050000,-32.4965614,0.00040283,7]
[422168275,1778643050000,-500.0,0.00040283,7]
[422168273,1778643050000,-500.0,0.00040283,7]
[422168279,1778643050000,-227.83877558,0.00040283,7]
[422168278,1778643050000,-122.4965614,0.00040283,7]
[422168267,1778643050000,-500.0,0.00040283,7]
[422168281,1778643050000,-500.0,0.00040283,7]
[422168280,1778643050000,-272.16122442,0.00040283,7]
[422168282,1778643050000,-517.89,0.00040283,7]
[422168283,1778643050000,-434.49,0.0004029,60]
[422168284,1778643050000,-2212.09,0.0004029,60]
[422168286,1778643050000,-6368.21,0.0004029,60]
[422168285,1778643050000,-1574.93,0.0004029,60]
[422168287,1778643050000,-2829.53942268,0.000403,120]
[422168288,1778643050000,-44034.85681953,0.000403,2]
[422168290,1778643050000,-892.18335078,0.000403,2]
[422168238,1778643050000,-851.54,0.0004,120]
[422168276,1778643050000,-500.0,0.00040283,7]
[422168266,1778643050000,-500.0,0.00040283,7]
[422168274,1778643050000,-500.0,0.00040283,7]
[422168268,1778643050000,-500.0,0.00040283,7]
[422168265,1778643050000,-500.0,0.00040283,7]
[422168240,1778643050000,-305.0,0.0004,30]
[422168241,1778643050000,-58610.37,0.0004,2]
[422168242,1778643050000,-202.23,0.0004,120]
[422168246,1778643050000,-170.3,0.0004,120]
[422168256,1778643050000,-150.0,0.00040139,2]
[422168245,1778643050000,-669.06,0.0004,30]
[422168236,1778643050000,-688.51,0.0004,120]
[422168247,1778643050000,-310.13,0.00040002,120]
[422168250,1778643050000,-4416.55036381,0.00040045,2]
[422168255,1778643050000,-2392.3319,0.00040137,30]
[422168248,1778643050000,-1725.31,0.00040006,120]
[422168257,1778643050000,-58610.37,0.000402,2]
[422168249,1778643050000,-718.712225,0.00040016,90]
[422168289,1778643050000,-2338.1,0.000403,2]
[422168254,1778643050000,-150.0,0.00040105,30]
[422168253,1778643050000,-310.13,0.00040102,120]
[422168252,1778643050000,-1500.0,0.000401,35]
[422168258,1778643050000,-310.13,0.00040202,120]
[422168260,1778643050000,-500.0,0.00040283,7]
[422168262,1778643050000,-500.0,0.00040283,7]
[422168263,1778643050000,-500.0,0.00040283,7]
[422168261,1778643050000,-500.0,0.00040283,7]
[422168264,1778643050000,-500.0,0.00040283,7]
[422168303,1778643051000,-1725.31,0.00040333,120]
[422168302,1778643051000,-150.00000001,0.00040329,30]
[422168306,1778643051000,-500.0,0.00040355,60]
[422168305,1778643051000,-518.15585916,0.00040355,60]
[422168318,1778643051000,-164.2602677,0.00026293,2]
[422168311,1778643051000,-27018.51232253,0.00040374,120]
[422168312,1778643051000,-2943.519,0.00020899,2]
[422168313,1778643051000,-418.81,0.0002625,2]
[422168315,1778643051000,-283.1702677,0.00026282,2]
[422168310,1778643051000,-154.96,0.00026275,2]
[422168300,1778643051000,-310.13,0.00040302,120]
[422168291,1778643051000,-154.96,0.00026216,2]
[422168296,1778643051000,-2830.88819016,0.00027397,10]
[422168299,1778643051000,-11345.22982969,0.000403,2]
[422168309,1778643051000,-9546.89806667,0.00040374,120]
[422168298,1778643051000,-400.43147592,0.00037132,2]
[422168307,1778643051000,-222.38,0.00040356,120]
[422168308,1778643051000,-1000.0,0.00040357,90]
[422168297,1778643051000,-300.46094175,0.00037132,2]
[422168295,1778643051000,-319.71,0.00027397,10]
[422168294,1778643051000,-696.98180984,0.00027397,10]
[422168293,1778643051000,-154.96,0.00026255,30]
[422168292,1778643051000,-154.96,0.00026235,7]
[422168317,1778643051000,-418.81,0.00026284,2]
[422168301,1778643051000,-1000.0,0.00040327,90]
[422168316,1778643051000,-415.9297323,0.00026282,2]
[422168304,1778643051000,-1000.0,0.00040335,90]
[422168319,1778643051000,-1223.9797323,0.00026293,2]
[422168314,1778643051000,-418.81,0.00026267,7]
[422168345,1778643051000,-338.89006486,0.00026374,2]
[422168343,1778643051000,-418.81,0.00026369,7]
[422168344,1778643051000,-45.72975318,0.00026374,2]
[422168339,1778643051000,-312.0402986,0.00026367,7]
[422168341,1778643051000,-319.71,0.00026367,7]
[422168340,1778643051000,-571.82945458,0.00026367,7]
[422168336,1778643051000,-154.96,0.00026355,7]
[422168337,1778643051000,-107.78043265,0.00026359,7]
[422168338,1778643051000,-591.31956735,0.00026359,7]
[422168335,1778643051000,-418.81,0.00026352,2]
[422168334,1778643051000,-1388.24,0.00026352,7]
[422168330,1778643051000,-154.96,0.00026335,2]
[422168342,1778643051000,-184.66024682,0.00026367,7]
[422168332,1778643051000,-1388.24,0.00026337,2]
[422168331,1778643051000,-418.81,0.00026335,7]
[422168329,1778643051000,-699.1,0.00026328,2]
[422168328,1778643051000,-1388.24,0.00026322,2]
[422168326,1778643051000,-154.96,0.00026315,30]
[422168324,1778643051000,-222.23397143,0.00026312,2]
[422168327,1778643051000,-418.81,0.00026318,7]
[422168323,1778643051000,-1388.24,0.00026307,7]
[422168321,1778643051000,-699.1,0.00026297,7]
[422168322,1778643051000,-418.81,0.00026301,2]
[422168325,1778643051000,-476.86602857,0.00026312,2]
[422168320,1778643051000,-154.96,0.00026295,7]
[422168333,1778643051000,-699.1,0.00026343,7]
[422168346,1778643072000,-154.8096066,0.00020795,2]
[422168347,1778643089000,-2500.0,0.0001521,2]
[422168349,1778643212000,270.488729,0.0002571,120]
[422168357,1778643648000,11682.0,0.00027397,120]
[422168360,1778643743000,294.14,0.00024919,120]
[422168361,1778643827000,1000.0,0.000249,120]
[422168362,1778643982000,173.582,0.00027246,120]
[422168363,1778644045000,-1107.84,0.0001234,2]
[422168365,1778644045000,-1200.0,0.00012491,2]
[422168364,1778644045000,-164.50922326,0.0001234,2]
[422168366,1778644045000,-300.0,0.00012491,2]
[422168367,1778644045000,-300.0,0.00012491,2]
[422168369,1778644045000,-1156.1428818,0.00012492,2]
[422168368,1778644045000,-866.79698879,0.00012492,2]
[422168370,1778644045000,-350.44229312,0.00012492,2]
[422168374,1778644045000,-231.46340233,0.00012591,2]
[422168371,1778644045000,-3083.86642496,0.00012492,2]
[422168373,1778644045000,-150.0,0.00012591,2]
[422168375,1778644045000,-150.0,0.00012591,2]
[422168372,1778644045000,-184.64770549,0.00012582,2]
[422168377,1778644045000,-150.0,0.00012591,2]
[422168376,1778644045000,-150.0,0.00012591,2]
[422168387,1778644045000,-500.0,0.00012591,2]
[422168385,1778644045000,-500.0,0.00012591,2]
[422168386,1778644045000,-500.0,0.00012591,2]
[422168384,1778644045000,-500.0,0.00012591,2]
[422168388,1778644045000,-98285.87468423,0.00012592,2]
[422168381,1778644045000,-500.0,0.00012591,2]
[422168382,1778644045000,-500.0,0.00012591,2]
[422168379,1778644045000,-150.0,0.00012591,2]
[422168380,1778644045000,-500.0,0.00012591,2]
[422168383,1778644045000,-500.0,0.00012591,2]
[422168378,1778644045000,-150.0,0.00012591,2]
[422168390,1778644167000,-330.50441725,0.00012591,2]
[422168389,1778644167000,-150.0,0.00012591,2]
[422168391,1778644167000,-32397.91737343,0.00012592,2]
[422168421,1778644232000,-500.0,0.00013698,2]
[422168426,1778644232000,-500.0,0.00013698,2]
[422168417,1778644232000,-500.0,0.00013698,2]
[422168419,1778644232000,-500.0,0.00013698,2]
[422168415,1778644232000,-505.50097699,0.00013698,2]
[422168423,1778644232000,-500.0,0.00013698,2]
[422168430,1778644232000,-500.0,0.00013698,2]
[422168425,1778644232000,-500.0,0.00013698,2]
[422168432,1778644232000,-500.0,0.00013698,2]
[422168427,1778644232000,-500.0,0.00013698,2]
[422168424,1778644232000,-500.0,0.00013698,2]